[Event "November 21 Early 2023"]
[Site "https://www.chess.com"]
[Date "2023.11.21"]
[Round "10"]
[White "IsaqueGoncalvesSanto"]
[Black "Sharafiev, Azat"]
[Result "0-1"]
[Board "130"]
[TimeControl "180+1"]
[BlackFideId "4186214"]
[WhiteElo "1958"]
[BlackElo "2306"]
[BlackTeam "RUS"]
[WhiteClock "0:00:00"]
[BlackClock "0:01:31"]

1. d4 {[%clk 0:03:00]}  d5 {[%clk 0:02:59]} 2. c4 {[%clk 0:03:01]}  dxc4 {[%clk 0:02:59]} 3. Nc3 {[%clk 0:03:01]}  a6 {[%clk 0:02:58]} 4. a4 {[%clk 0:03:00]}  Nf6 {[%clk 0:02:57]} 5. e3 {[%clk 0:03:00]}  e6 {[%clk 0:02:57]} 6. Bxc4 {[%clk 0:02:59]}  c5 {[%clk 0:02:57]} 7. Nf3 {[%clk 0:02:57]}  Nc6 {[%clk 0:02:55]} 8. O-O {[%clk 0:02:55]}  Be7 {[%clk 0:02:56]} 9. d5 {[%clk 0:02:43]}  exd5 {[%clk 0:02:55]} 10. Nxd5 {[%clk 0:02:43]}  O-O {[%clk 0:02:54]} 11. Nxe7+ {[%clk 0:02:41]}  Qxe7 {[%clk 0:02:54]} 12. Qe2 {[%clk 0:02:38]}  Bg4 {[%clk 0:02:53]} 13. h3 {[%clk 0:02:37]}  Bh5 {[%clk 0:02:53]} 14. g4 {[%clk 0:02:28]}  Bg6 {[%clk 0:02:51]} 15. Nh4 {[%clk 0:02:21]}  Rad8 {[%clk 0:02:50]} 16. Nxg6 {[%clk 0:02:21]}  hxg6 {[%clk 0:02:49]} 17. b3 {[%clk 0:02:16]}  Qe4 {[%clk 0:02:49]} 18. f3 {[%clk 0:02:13]}  Qe7 {[%clk 0:02:47]} 19. Bb2 {[%clk 0:02:12]}  Ne5 {[%clk 0:02:47]} 20. Bxe5 {[%clk 0:01:58]}  Qxe5 {[%clk 0:02:47]} 21. f4 {[%clk 0:01:50]}  Qe4 {[%clk 0:02:45]} 22. Rad1 {[%clk 0:01:47]}  Rxd1 {[%clk 0:02:43]} 23. Rxd1 {[%clk 0:01:46]}  Re8 {[%clk 0:02:43]} 24. Kf2 {[%clk 0:01:40]}  Qe7 {[%clk 0:02:34]} 25. Bd3 {[%clk 0:01:29]}  Nd5 {[%clk 0:02:33]} 26. Re1 {[%clk 0:01:16]}  Qh4+ {[%clk 0:02:26]} 27. Kg2 {[%clk 0:00:48]}  Nxf4+ {[%clk 0:01:45]} 28. exf4 {[%clk 0:00:48]}  Qxe1 {[%clk 0:01:45]} 29. Qxe1 {[%clk 0:00:37]}  Rxe1 {[%clk 0:01:46]} 30. Kf3 {[%clk 0:00:33]}  Rc1 {[%clk 0:01:44]} 31. Ke4 {[%clk 0:00:30]}  Rc3 {[%clk 0:01:42]} 32. Bc4 {[%clk 0:00:27]}  b5 {[%clk 0:01:42]} 33. axb5 {[%clk 0:00:19]}  axb5 {[%clk 0:01:43]} 34. Bxb5 {[%clk 0:00:20]}  Rxb3 {[%clk 0:01:43]} 35. Bc4 {[%clk 0:00:19]}  Rxh3 {[%clk 0:01:43]} 36. Kd5 {[%clk 0:00:19]}  Rf3 {[%clk 0:01:41]} 37. Ke4 {[%clk 0:00:17]}  Rc3 {[%clk 0:01:41]} 38. Kd5 {[%clk 0:00:17]}  Kf8 {[%clk 0:01:35]} 39. Kxc5 {[%clk 0:00:17]}  Rf3 {[%clk 0:01:36]} 40. Be2 {[%clk 0:00:07]}  Rxf4 {[%clk 0:01:34]} 41. Kd5 {[%clk 0:00:07]}  f5 {[%clk 0:01:35]} 42. gxf5 {[%clk 0:00:06]}  gxf5 {[%clk 0:01:35]} 43. Ke5 {[%clk 0:00:07]}  Rf2 {[%clk 0:01:35]} 44. Bh5 {[%clk 0:00:06]}  Ke7 {[%clk 0:01:34]} 45. Bg6 {[%clk 0:00:05]}  f4 {[%clk 0:01:35]} 46. Be4 {[%clk 0:00:05]}  g5 {[%clk 0:01:33]} 47. Kf5 {[%clk 0:00:05]}  Kd6 {[%clk 0:01:32]} 48. Kxg5 {[%clk 0:00:04]}  Ke5 {[%clk 0:01:32]} 49. Bc6 {[%clk 0:00:03]}  Kd4 {[%clk 0:01:32]} 50. Kg4 {[%clk 0:00:03]}  Ke3 {[%clk 0:01:32]} 51. Bd5 {[%clk 0:00:00]}  Rb2 {[%clk 0:01:31]} 0-1

[Event "November 21 Early 2023"]
[Site "https://www.chess.com"]
[Date "2023.11.21"]
[Round "10"]
[White "Rose, Felix"]
[Black "Seletsky, Grigory"]
[Result "1/2-1/2"]
[Board "132"]
[TimeControl "180+1"]
[WhiteFideId "5105722"]
[BlackFideId "14112191"]
[WhiteElo "2039"]
[BlackElo "2482"]
[WhiteTeam "MEX"]
[BlackTeam "UKR"]
[WhiteClock "0:00:32"]
[BlackClock "0:00:14"]

1. e4 {[%clk 0:03:00]}  e6 {[%clk 0:02:59]} 2. d4 {[%clk 0:03:00]}  d5 {[%clk 0:03:00]} 3. Nc3 {[%clk 0:03:00]}  Nc6 {[%clk 0:02:59]} 4. Nf3 {[%clk 0:03:00]}  Nf6 {[%clk 0:02:58]} 5. Bd3 {[%clk 0:02:56]}  Nb4 {[%clk 0:02:57]} 6. Bg5 {[%clk 0:02:42]}  Be7 {[%clk 0:02:54]} 7. e5 {[%clk 0:02:38]}  Nxd3+ {[%clk 0:02:53]} 8. Qxd3 {[%clk 0:02:37]}  Nd7 {[%clk 0:02:53]} 9. h4 {[%clk 0:02:34]}  a6 {[%clk 0:02:52]} 10. Ne2 {[%clk 0:02:28]}  c5 {[%clk 0:02:51]} 11. c3 {[%clk 0:02:25]}  b6 {[%clk 0:02:51]} 12. Qe3 {[%clk 0:02:22]}  a5 {[%clk 0:02:50]} 13. O-O {[%clk 0:02:18]}  Ba6 {[%clk 0:02:50]} 14. Rfe1 {[%clk 0:02:17]}  Bxe2 {[%clk 0:02:48]} 15. Rxe2 {[%clk 0:02:18]}  O-O {[%clk 0:02:47]} 16. Rc1 {[%clk 0:02:13]}  Rc8 {[%clk 0:02:48]} 17. Rec2 {[%clk 0:02:13]}  c4 {[%clk 0:02:39]} 18. h5 {[%clk 0:02:08]}  Bxg5 {[%clk 0:02:33]} 19. Nxg5 {[%clk 0:02:04]}  h6 {[%clk 0:02:34]} 20. Nf3 {[%clk 0:02:03]}  b5 {[%clk 0:02:31]} 21. b3 {[%clk 0:01:53]}  Qb6 {[%clk 0:02:26]} 22. Rb1 {[%clk 0:01:50]}  cxb3 {[%clk 0:02:14]} 23. Rxb3 {[%clk 0:01:48]}  a4 {[%clk 0:02:09]} 24. Rb4 {[%clk 0:01:46]}  Rc4 {[%clk 0:02:09]} 25. Rcb2 {[%clk 0:01:47]}  Rxb4 {[%clk 0:01:59]} 26. Rxb4 {[%clk 0:01:48]}  Rc8 {[%clk 0:01:54]} 27. Qd3 {[%clk 0:01:46]}  Rc4 {[%clk 0:01:54]} 28. Qb1 {[%clk 0:01:42]}  Rxb4 {[%clk 0:01:53]} 29. Qxb4 {[%clk 0:01:42]}  Qc6 {[%clk 0:01:46]} 30. Nd2 {[%clk 0:01:30]}  Nf8 {[%clk 0:01:25]} 31. f4 {[%clk 0:01:27]}  Nd7 {[%clk 0:01:21]} 32. Kf2 {[%clk 0:01:27]}  Nb6 {[%clk 0:01:20]} 33. g4 {[%clk 0:01:22]}  Nc4 {[%clk 0:01:11]} 34. Nf3 {[%clk 0:01:19]}  Qd7 {[%clk 0:01:06]} 35. Qc5 {[%clk 0:01:12]}  f6 {[%clk 0:01:05]} 36. exf6 {[%clk 0:01:07]}  gxf6 {[%clk 0:01:03]} 37. Nh4 {[%clk 0:01:06]}  Kf7 {[%clk 0:01:00]} 38. Ng6 {[%clk 0:01:05]}  Nd6 {[%clk 0:01:00]} 39. Qb6 {[%clk 0:01:01]}  Kg7 {[%clk 0:00:35]} 40. Qb8 {[%clk 0:00:58]}  Ne8 {[%clk 0:00:23]} 41. a3 {[%clk 0:00:56]}  Kf7 {[%clk 0:00:23]} 42. Kf3 {[%clk 0:00:53]}  Qc7 {[%clk 0:00:22]} 43. Qxb5 {[%clk 0:00:50]}  Qxc3+ {[%clk 0:00:21]} 44. Kg2 {[%clk 0:00:51]}  Qd2+ {[%clk 0:00:18]} 45. Kg3 {[%clk 0:00:47]}  Qe3+ {[%clk 0:00:17]} 46. Kh4 {[%clk 0:00:42]}  Qf2+ {[%clk 0:00:16]} 47. Kh3 {[%clk 0:00:42]}  Qf3+ {[%clk 0:00:16]} 48. Kh2 {[%clk 0:00:34]}  Qf2+ {[%clk 0:00:16]} 49. Kh1 {[%clk 0:00:32]}  Qf3+ {[%clk 0:00:15]} 50. Kh2 {[%clk 0:00:32]}  Qf2+ {[%clk 0:00:15]} 51. Kh3 {[%clk 0:00:33]}  Qf3+ {[%clk 0:00:14]} 52. Kh4 {[%clk 0:00:32]}  Qf2+ {[%clk 0:00:14]} 53. Kh3 {[%clk 0:00:32]} 1/2-1/2

[Event "November 21 Early 2023"]
[Site "https://www.chess.com"]
[Date "2023.11.21"]
[Round "10"]
[White "Cardozo Munar, Carlos Eduardo"]
[Black "Osinovsky, Stepan"]
[Result "1-0"]
[Board "133"]
[TimeControl "180+1"]
[WhiteFideId "4409477"]
[BlackFideId "4157354"]
[WhiteElo "2067"]
[BlackElo "2222"]
[WhiteTeam "COL"]
[BlackTeam "RUS"]
[WhiteClock "0:01:32"]
[BlackClock "0:00:04"]

1. d4 {[%clk 0:03:00]}  Nf6 {[%clk 0:02:54]} 2. Bg5 {[%clk 0:02:54]}  g6 {[%clk 0:02:55]} 3. Bxf6 {[%clk 0:02:49]}  exf6 {[%clk 0:02:56]} 4. g3 {[%clk 0:02:50]}  Bg7 {[%clk 0:02:56]} 5. Bg2 {[%clk 0:02:51]}  O-O {[%clk 0:02:57]} 6. e3 {[%clk 0:02:52]}  d6 {[%clk 0:02:56]} 7. Ne2 {[%clk 0:02:53]}  f5 {[%clk 0:02:56]} 8. Nd2 {[%clk 0:02:53]}  Nd7 {[%clk 0:02:56]} 9. O-O {[%clk 0:02:53]}  Nf6 {[%clk 0:02:56]} 10. c4 {[%clk 0:02:53]}  h5 {[%clk 0:02:55]} 11. b4 {[%clk 0:02:53]}  a5 {[%clk 0:02:54]} 12. b5 {[%clk 0:02:52]}  Re8 {[%clk 0:02:48]} 13. a4 {[%clk 0:02:48]}  h4 {[%clk 0:02:41]} 14. Rc1 {[%clk 0:02:43]}  hxg3 {[%clk 0:02:41]} 15. hxg3 {[%clk 0:02:41]}  Ng4 {[%clk 0:02:41]} 16. c5 {[%clk 0:02:38]}  Bh6 {[%clk 0:02:07]} 17. Nc4 {[%clk 0:02:10]}  d5 {[%clk 0:01:50]} 18. Ne5 {[%clk 0:02:10]}  Nxe5 {[%clk 0:01:44]} 19. dxe5 {[%clk 0:02:09]}  Rxe5 {[%clk 0:01:44]} 20. c6 {[%clk 0:02:00]}  bxc6 {[%clk 0:01:30]} 21. Rxc6 {[%clk 0:01:53]}  Bb7 {[%clk 0:01:29]} 22. Rc5 {[%clk 0:01:53]}  Bf8 {[%clk 0:01:27]} 23. Rc2 {[%clk 0:01:48]}  Bd6 {[%clk 0:01:23]} 24. Rd2 {[%clk 0:01:45]}  Bb4 {[%clk 0:01:09]} 25. Rd3 {[%clk 0:01:44]}  Qd6 {[%clk 0:01:08]} 26. Qb3 {[%clk 0:01:39]}  Rd8 {[%clk 0:01:04]} 27. Rfd1 {[%clk 0:01:39]}  Bc5 {[%clk 0:01:00]} 28. Nf4 {[%clk 0:01:33]}  Kg7 {[%clk 0:00:27]} 29. Nxd5 {[%clk 0:01:32]}  Bxd5 {[%clk 0:00:26]} 30. Rxd5 {[%clk 0:01:32]}  Rxd5 {[%clk 0:00:23]} 31. Rxd5 {[%clk 0:01:31]}  Qe7 {[%clk 0:00:04]} 32. Qc3+ {[%clk 0:01:32]} 1-0

[Event "November 21 Early 2023"]
[Site "https://www.chess.com"]
[Date "2023.11.21"]
[Round "10"]
[White "Rios Escobar, Adan"]
[Black "Witty_Alien"]
[Result "1-0"]
[Board "135"]
[TimeControl "180+1"]
[WhiteFideId "3403645"]
[WhiteElo "2409"]
[BlackElo "2285"]
[WhiteTeam "CHI"]
[WhiteClock "0:00:23"]
[BlackClock "0:00:02"]

1. d4 {[%clk 0:03:00]}  e5 {[%clk 0:02:54]} 2. dxe5 {[%clk 0:03:00]}  d6 {[%clk 0:02:54]} 3. Nf3 {[%clk 0:02:55]}  Nc6 {[%clk 0:02:54]} 4. Bg5 {[%clk 0:02:47]}  Qd7 {[%clk 0:02:49]} 5. exd6 {[%clk 0:02:43]}  Bxd6 {[%clk 0:02:49]} 6. Nc3 {[%clk 0:02:42]}  h6 {[%clk 0:02:40]} 7. Bh4 {[%clk 0:02:34]}  g5 {[%clk 0:02:40]} 8. Bg3 {[%clk 0:02:33]}  Bxg3 {[%clk 0:02:26]} 9. Qxd7+ {[%clk 0:02:30]}  Bxd7 {[%clk 0:02:27]} 10. hxg3 {[%clk 0:02:30]}  Nf6 {[%clk 0:02:27]} 11. Nxg5 {[%clk 0:02:27]}  Ng4 {[%clk 0:02:10]} 12. Nge4 {[%clk 0:02:19]}  O-O-O {[%clk 0:02:02]} 13. e3 {[%clk 0:02:10]}  Nb4 {[%clk 0:01:59]} 14. Rc1 {[%clk 0:02:06]}  f5 {[%clk 0:01:26]} 15. Nc5 {[%clk 0:01:59]}  Bc6 {[%clk 0:01:23]} 16. Rh5 {[%clk 0:01:56]}  b6 {[%clk 0:01:07]} 17. Nd3 {[%clk 0:01:52]}  Nxd3+ {[%clk 0:00:59]} 18. Bxd3 {[%clk 0:01:50]}  Rxd3 {[%clk 0:00:50]} 19. cxd3 {[%clk 0:01:48]}  Bxg2 {[%clk 0:00:51]} 20. Rxf5 {[%clk 0:01:46]}  Kb7 {[%clk 0:00:42]} 21. Nb5 {[%clk 0:01:33]}  c6 {[%clk 0:00:41]} 22. Rf7+ {[%clk 0:01:31]}  Ka6 {[%clk 0:00:41]} 23. Nc7+ {[%clk 0:01:28]}  Ka5 {[%clk 0:00:41]} 24. a3 {[%clk 0:01:20]}  h5 {[%clk 0:00:35]} 25. Ne6 {[%clk 0:01:14]}  a6 {[%clk 0:00:33]} 26. Rf5+ {[%clk 0:01:07]}  b5 {[%clk 0:00:32]} 27. Nd4 {[%clk 0:01:03]}  Rh6 {[%clk 0:00:22]} 28. Rfc5 {[%clk 0:00:51]}  Kb6 {[%clk 0:00:14]} 29. e4 {[%clk 0:00:51]}  Ka5 {[%clk 0:00:08]} 30. Nxc6+ {[%clk 0:00:50]}  Ka4 {[%clk 0:00:08]} 31. f4 {[%clk 0:00:38]}  h4 {[%clk 0:00:07]} 32. gxh4 {[%clk 0:00:36]}  Rxh4 {[%clk 0:00:08]} 33. Nd4 {[%clk 0:00:33]}  Rh1+ {[%clk 0:00:04]} 34. Kd2 {[%clk 0:00:32]}  Rh2 {[%clk 0:00:05]} 35. Kc3 {[%clk 0:00:27]}  Bxe4 {[%clk 0:00:01]} 36. b3+ {[%clk 0:00:26]}  Kxa3 {[%clk 0:00:02]} 37. Ra1+ {[%clk 0:00:26]}  Ra2 {[%clk 0:00:02]} 38. Nc2# {[%clk 0:00:23]} 1-0

[Event "November 21 Early 2023"]
[Site "https://www.chess.com"]
[Date "2023.11.21"]
[Round "10"]
[White "Minina, Veronika"]
[Black "Mushini Ajay"]
[Result "0-1"]
[Board "136"]
[TimeControl "180+1"]
[WhiteFideId "4174780"]
[BlackFideId "35066188"]
[WhiteElo "1905"]
[BlackElo "2162"]
[WhiteTeam "RUS"]
[BlackTeam "IND"]
[WhiteClock "0:00:02"]
[BlackClock "0:00:07"]

1. Nf3 {[%clk 0:03:00]}  c5 {[%clk 0:03:00]} 2. g3 {[%clk 0:03:00]}  d5 {[%clk 0:02:57]} 3. Bg2 {[%clk 0:02:59]}  Nf6 {[%clk 0:02:58]} 4. O-O {[%clk 0:02:56]}  e6 {[%clk 0:02:59]} 5. c4 {[%clk 0:02:57]}  Nc6 {[%clk 0:03:00]} 6. d4 {[%clk 0:02:56]}  dxc4 {[%clk 0:02:58]} 7. Qa4 {[%clk 0:02:55]}  Bd7 {[%clk 0:02:52]} 8. dxc5 {[%clk 0:02:41]}  Bxc5 {[%clk 0:02:50]} 9. Qxc4 {[%clk 0:02:41]}  Be7 {[%clk 0:02:48]} 10. Nc3 {[%clk 0:02:40]}  O-O {[%clk 0:02:47]} 11. Rd1 {[%clk 0:02:35]}  Rc8 {[%clk 0:02:46]} 12. Qd3 {[%clk 0:02:21]}  Nb4 {[%clk 0:02:41]} 13. Qd2 {[%clk 0:02:21]}  Qc7 {[%clk 0:02:31]} 14. a3 {[%clk 0:02:20]}  Nbd5 {[%clk 0:02:26]} 15. Nxd5 {[%clk 0:02:18]}  Nxd5 {[%clk 0:02:24]} 16. Nd4 {[%clk 0:02:06]}  Bf6 {[%clk 0:02:14]} 17. e4 {[%clk 0:01:53]}  Nb6 {[%clk 0:02:06]} 18. f4 {[%clk 0:01:26]}  Ba4 {[%clk 0:02:03]} 19. Re1 {[%clk 0:01:12]}  Nc4 {[%clk 0:01:46]} 20. Qf2 {[%clk 0:01:09]}  Rfd8 {[%clk 0:01:34]} 21. e5 {[%clk 0:01:09]}  Be7 {[%clk 0:01:33]} 22. b4 {[%clk 0:00:52]}  a5 {[%clk 0:01:24]} 23. Kh1 {[%clk 0:00:37]}  axb4 {[%clk 0:01:22]} 24. axb4 {[%clk 0:00:38]}  b5 {[%clk 0:01:20]} 25. Nc6 {[%clk 0:00:28]}  Re8 {[%clk 0:01:15]} 26. Qd4 {[%clk 0:00:20]}  Bf8 {[%clk 0:01:02]} 27. Rxa4 {[%clk 0:00:19]}  bxa4 {[%clk 0:01:00]} 28. Qxc4 {[%clk 0:00:19]}  Qd7 {[%clk 0:00:52]} 29. b5 {[%clk 0:00:17]}  a3 {[%clk 0:00:49]} 30. Qb3 {[%clk 0:00:16]}  Ra8 {[%clk 0:00:37]} 31. Nb4 {[%clk 0:00:15]}  a2 {[%clk 0:00:30]} 32. Nxa2 {[%clk 0:00:14]}  Rxa2 {[%clk 0:00:25]} 33. Qxa2 {[%clk 0:00:15]}  Qxb5 {[%clk 0:00:25]} 34. Be3 {[%clk 0:00:15]}  Rd8 {[%clk 0:00:19]} 35. Qc2 {[%clk 0:00:14]}  g5 {[%clk 0:00:18]} 36. Qe4 {[%clk 0:00:13]}  Bb4 {[%clk 0:00:14]} 37. Rg1 {[%clk 0:00:11]}  Be7 {[%clk 0:00:11]} 38. fxg5 {[%clk 0:00:11]}  Qe2 {[%clk 0:00:10]} 39. Bf3 {[%clk 0:00:10]}  Qb2 {[%clk 0:00:08]} 40. Bf4 {[%clk 0:00:07]}  Qc3 {[%clk 0:00:08]} 41. Qe3 {[%clk 0:00:07]}  Rd3 {[%clk 0:00:06]} 42. Qa7 {[%clk 0:00:04]}  Rxf3 {[%clk 0:00:07]} 43. Qxe7 {[%clk 0:00:04]}  Qc6 {[%clk 0:00:06]} 44. Qd8+ {[%clk 0:00:04]}  Kg7 {[%clk 0:00:06]} 45. Qf6+ {[%clk 0:00:04]}  Kg8 {[%clk 0:00:07]} 46. Qd8+ {[%clk 0:00:04]}  Kg7 {[%clk 0:00:08]} 47. Qf6+ {[%clk 0:00:04]}  Kf8 {[%clk 0:00:08]} 48. Qh8+ {[%clk 0:00:02]}  Ke7 {[%clk 0:00:08]} 49. Qf6+ {[%clk 0:00:03]}  Ke8 {[%clk 0:00:08]} 50. Rg2 {[%clk 0:00:02]}  Rf1# {[%clk 0:00:07]} 0-1

[Event "November 21 Early 2023"]
[Site "https://www.chess.com"]
[Date "2023.11.21"]
[Round "10"]
[White "Figorito, Nick"]
[Black "Martin, Lewis"]
[Result "1/2-1/2"]
[Board "137"]
[TimeControl "180+1"]
[WhiteFideId "30923689"]
[BlackFideId "410551"]
[WhiteElo "2370"]
[BlackElo "2145"]
[WhiteTeam "USA"]
[BlackTeam "ENG"]
[WhiteClock "0:00:04"]
[BlackClock "0:00:28"]

1. Nf3 {[%clk 0:03:00]}  Nf6 {[%clk 0:02:59]} 2. g3 {[%clk 0:03:01]}  c6 {[%clk 0:02:57]} 3. Bg2 {[%clk 0:03:02]}  d5 {[%clk 0:02:58]} 4. O-O {[%clk 0:03:03]}  Bf5 {[%clk 0:02:56]} 5. c4 {[%clk 0:03:00]}  e6 {[%clk 0:02:56]} 6. Qb3 {[%clk 0:03:00]}  Qb6 {[%clk 0:02:56]} 7. d4 {[%clk 0:03:00]}  Nbd7 {[%clk 0:02:54]} 8. c5 {[%clk 0:03:01]}  Qa6 {[%clk 0:02:49]} 9. Re1 {[%clk 0:02:57]}  b6 {[%clk 0:02:49]} 10. Bf1 {[%clk 0:02:56]}  Qc8 {[%clk 0:02:44]} 11. cxb6 {[%clk 0:02:53]}  axb6 {[%clk 0:02:42]} 12. Nc3 {[%clk 0:02:52]}  Bd6 {[%clk 0:02:39]} 13. Bf4 {[%clk 0:02:43]}  Bxf4 {[%clk 0:02:38]} 14. gxf4 {[%clk 0:02:44]}  O-O {[%clk 0:02:38]} 15. Rac1 {[%clk 0:02:44]}  Qb7 {[%clk 0:02:31]} 16. e3 {[%clk 0:02:39]}  Ne4 {[%clk 0:02:27]} 17. Nxe4 {[%clk 0:02:35]}  Bxe4 {[%clk 0:02:26]} 18. Bg2 {[%clk 0:02:35]}  f6 {[%clk 0:02:25]} 19. a3 {[%clk 0:02:29]}  Rfc8 {[%clk 0:02:21]} 20. Nd2 {[%clk 0:02:29]}  Bxg2 {[%clk 0:02:20]} 21. Kxg2 {[%clk 0:02:30]}  c5 {[%clk 0:02:19]} 22. dxc5 {[%clk 0:02:28]}  Rxc5 {[%clk 0:02:14]} 23. Kg1 {[%clk 0:02:20]}  Rac8 {[%clk 0:02:12]} 24. Rxc5 {[%clk 0:02:18]}  Nxc5 {[%clk 0:02:11]} 25. Qb5 {[%clk 0:02:15]}  Qa6 {[%clk 0:02:06]} 26. Qxa6 {[%clk 0:01:53]}  Nxa6 {[%clk 0:02:07]} 27. Nb3 {[%clk 0:01:53]}  Rc2 {[%clk 0:01:53]} 28. Nd4 {[%clk 0:01:42]}  Rxb2 {[%clk 0:01:53]} 29. Nxe6 {[%clk 0:01:43]}  Kf7 {[%clk 0:01:52]} 30. Nd4 {[%clk 0:01:37]}  Nc5 {[%clk 0:01:51]} 31. Rd1 {[%clk 0:01:32]}  Ne4 {[%clk 0:01:47]} 32. Nf5 {[%clk 0:01:13]}  g6 {[%clk 0:01:41]} 33. Ng3 {[%clk 0:01:02]}  Nc3 {[%clk 0:01:34]} 34. Ra1 {[%clk 0:00:45]}  b5 {[%clk 0:01:31]} 35. Kg2 {[%clk 0:00:41]}  Rb1 {[%clk 0:01:29]} 36. Rxb1 {[%clk 0:00:40]}  Nxb1 {[%clk 0:01:30]} 37. Ne2 {[%clk 0:00:40]}  Nxa3 {[%clk 0:01:28]} 38. Nc3 {[%clk 0:00:39]}  Ke6 {[%clk 0:01:27]} 39. Kf3 {[%clk 0:00:39]}  b4 {[%clk 0:01:27]} 40. Na4 {[%clk 0:00:38]}  Nc4 {[%clk 0:01:25]} 41. Ke2 {[%clk 0:00:36]}  b3 {[%clk 0:01:24]} 42. Nc5+ {[%clk 0:00:36]}  Kf5 {[%clk 0:01:23]} 43. Nxb3 {[%clk 0:00:37]}  Kg4 {[%clk 0:01:22]} 44. Nd4 {[%clk 0:00:25]}  Nd6 {[%clk 0:01:18]} 45. Kf1 {[%clk 0:00:22]}  Kh3 {[%clk 0:01:17]} 46. Kg1 {[%clk 0:00:18]}  Ne4 {[%clk 0:01:17]} 47. Nf3 {[%clk 0:00:15]}  g5 {[%clk 0:01:14]} 48. fxg5 {[%clk 0:00:15]}  fxg5 {[%clk 0:01:14]} 49. Ne5 {[%clk 0:00:12]}  Nd2 {[%clk 0:01:06]} 50. f4 {[%clk 0:00:09]}  gxf4 {[%clk 0:01:04]} 51. exf4 {[%clk 0:00:10]}  d4 {[%clk 0:01:02]} 52. f5 {[%clk 0:00:09]}  Ne4 {[%clk 0:01:01]} 53. Kf1 {[%clk 0:00:02]}  Kxh2 {[%clk 0:01:00]} 54. Ke2 {[%clk 0:00:03]}  Kg3 {[%clk 0:01:00]} 55. Kd3 {[%clk 0:00:03]}  Nf6 {[%clk 0:00:57]} 56. Kxd4 {[%clk 0:00:03]}  Kf4 {[%clk 0:00:57]} 57. Nf7 {[%clk 0:00:02]}  Kxf5 {[%clk 0:00:56]} 58. Ke3 {[%clk 0:00:02]}  Kg4 {[%clk 0:00:53]} 59. Kf2 {[%clk 0:00:02]}  h5 {[%clk 0:00:53]} 60. Kg1 {[%clk 0:00:02]}  Kg3 {[%clk 0:00:52]} 61. Ne5 {[%clk 0:00:03]}  h4 {[%clk 0:00:52]} 62. Kh1 {[%clk 0:00:03]}  Ne4 {[%clk 0:00:51]} 63. Nd3 {[%clk 0:00:03]}  h3 {[%clk 0:00:40]} 64. Kg1 {[%clk 0:00:03]}  Ng5 {[%clk 0:00:29]} 65. Kh1 {[%clk 0:00:02]}  Kf3 {[%clk 0:00:29]} 66. Kh2 {[%clk 0:00:03]}  Kg4 {[%clk 0:00:28]} 67. Nf2+ {[%clk 0:00:03]}  Kh4 {[%clk 0:00:28]} 68. Nxh3 {[%clk 0:00:04]} 1/2-1/2

[Event "November 21 Early 2023"]
[Site "https://www.chess.com"]
[Date "2023.11.21"]
[Round "10"]
[White "Ambrogi, Agustin"]
[Black "pinguino120"]
[Result "1-0"]
[Board "138"]
[TimeControl "180+1"]
[WhiteFideId "170933"]
[WhiteElo "2214"]
[BlackElo "2244"]
[WhiteTeam "ARG"]
[WhiteClock "0:00:08"]
[BlackClock "0:00:04"]

1. e4 {[%clk 0:03:00]}  c6 {[%clk 0:02:55]} 2. d4 {[%clk 0:02:58]}  d5 {[%clk 0:02:55]} 3. exd5 {[%clk 0:02:58]}  cxd5 {[%clk 0:02:56]} 4. c4 {[%clk 0:02:59]}  Nf6 {[%clk 0:02:54]} 5. Nc3 {[%clk 0:02:59]}  e6 {[%clk 0:02:53]} 6. Nf3 {[%clk 0:02:58]}  Bb4 {[%clk 0:02:53]} 7. cxd5 {[%clk 0:02:58]}  Nxd5 {[%clk 0:02:53]} 8. Qc2 {[%clk 0:02:56]}  O-O {[%clk 0:02:46]} 9. Bd3 {[%clk 0:02:56]}  g6 {[%clk 0:02:41]} 10. O-O {[%clk 0:02:56]}  Nc6 {[%clk 0:02:38]} 11. Bh6 {[%clk 0:02:56]}  Re8 {[%clk 0:02:38]} 12. Rac1 {[%clk 0:02:53]}  Bf8 {[%clk 0:02:27]} 13. Bxf8 {[%clk 0:02:52]}  Rxf8 {[%clk 0:02:27]} 14. Be4 {[%clk 0:02:51]}  Nce7 {[%clk 0:02:26]} 15. Ne5 {[%clk 0:02:48]}  f6 {[%clk 0:02:19]} 16. Nf3 {[%clk 0:02:40]}  Bd7 {[%clk 0:02:18]} 17. Rfe1 {[%clk 0:02:35]}  Kg7 {[%clk 0:02:05]} 18. Qb3 {[%clk 0:02:01]}  Bc6 {[%clk 0:01:49]} 19. Nxd5 {[%clk 0:01:53]}  exd5 {[%clk 0:01:43]} 20. Bd3 {[%clk 0:01:52]}  Qd7 {[%clk 0:01:43]} 21. Re3 {[%clk 0:01:01]}  Rae8 {[%clk 0:01:38]} 22. Rce1 {[%clk 0:00:34]}  Nc8 {[%clk 0:01:37]} 23. h3 {[%clk 0:00:26]}  Nd6 {[%clk 0:01:34]} 24. Qb4 {[%clk 0:00:24]}  Ne4 {[%clk 0:01:21]} 25. Nd2 {[%clk 0:00:24]}  Qd6 {[%clk 0:00:59]} 26. Qxd6 {[%clk 0:00:23]}  Nxd6 {[%clk 0:00:59]} 27. Re7+ {[%clk 0:00:21]}  Rxe7 {[%clk 0:00:54]} 28. Rxe7+ {[%clk 0:00:22]}  Rf7 {[%clk 0:00:54]} 29. Re3 {[%clk 0:00:22]}  Kf8 {[%clk 0:00:51]} 30. g4 {[%clk 0:00:17]}  Re7 {[%clk 0:00:51]} 31. Rf3 {[%clk 0:00:17]}  Kg7 {[%clk 0:00:47]} 32. Kf1 {[%clk 0:00:17]}  Ne4 {[%clk 0:00:44]} 33. Bxe4 {[%clk 0:00:16]}  dxe4 {[%clk 0:00:43]} 34. Rc3 {[%clk 0:00:14]}  Rd7 {[%clk 0:00:41]} 35. Nb3 {[%clk 0:00:13]}  f5 {[%clk 0:00:38]} 36. gxf5 {[%clk 0:00:13]}  gxf5 {[%clk 0:00:39]} 37. Ke2 {[%clk 0:00:13]}  Kf6 {[%clk 0:00:39]} 38. Ke3 {[%clk 0:00:12]}  Kg5 {[%clk 0:00:37]} 39. Rc5 {[%clk 0:00:13]}  Rd5 {[%clk 0:00:34]} 40. Rc1 {[%clk 0:00:05]}  f4+ {[%clk 0:00:33]} 41. Ke2 {[%clk 0:00:05]}  Kf5 {[%clk 0:00:31]} 42. Rg1 {[%clk 0:00:05]}  Bb5+ {[%clk 0:00:29]} 43. Kd2 {[%clk 0:00:05]}  Bc4 {[%clk 0:00:27]} 44. Kc3 {[%clk 0:00:04]}  Bxb3 {[%clk 0:00:24]} 45. axb3 {[%clk 0:00:05]}  e3 {[%clk 0:00:24]} 46. fxe3 {[%clk 0:00:05]}  fxe3 {[%clk 0:00:25]} 47. Kd3 {[%clk 0:00:06]}  e2 {[%clk 0:00:19]} 48. Re1 {[%clk 0:00:06]}  Kf4 {[%clk 0:00:17]} 49. Rxe2 {[%clk 0:00:06]}  Rb5 {[%clk 0:00:15]} 50. Kc4 {[%clk 0:00:06]}  Rb6 {[%clk 0:00:15]} 51. Re7 {[%clk 0:00:06]}  h5 {[%clk 0:00:11]} 52. d5 {[%clk 0:00:07]}  h4 {[%clk 0:00:11]} 53. Kc5 {[%clk 0:00:07]}  Kg3 {[%clk 0:00:10]} 54. Re3+ {[%clk 0:00:05]}  Kf2 {[%clk 0:00:09]} 55. Rd3 {[%clk 0:00:05]}  Rf6 {[%clk 0:00:06]} 56. d6 {[%clk 0:00:06]}  Rf8 {[%clk 0:00:06]} 57. d7 {[%clk 0:00:06]}  Rd8 {[%clk 0:00:07]} 58. Kd6 {[%clk 0:00:06]}  Ke2 {[%clk 0:00:06]} 59. Rc3 {[%clk 0:00:06]}  Rh8 {[%clk 0:00:06]} 60. Kc7 {[%clk 0:00:07]}  Rh7 {[%clk 0:00:05]} 61. Kc8 {[%clk 0:00:07]}  Rh8+ {[%clk 0:00:04]} 62. d8=Q {[%clk 0:00:08]} 1-0